fUST/lending_fUST_20240119
["ID","MTS","AMOUNT","RATE_DAILY","PERIOD"]
[312168982,1705677042841,-500.0,0.00028219,2]
[312168983,1705677042851,-195.13006796,0.00028219,2]
[312168984,1705677042861,-3658.92,0.00028219,2]
[312168985,1705677042877,-4354.7,0.00028219,2]
[312168986,1705677042888,-500.0,0.00028219,2]
[312168987,1705677042899,-734.22,0.00028219,2]
[312168989,1705677042910,-851.02,0.00028219,2]
[312168991,1705677042921,-18151.31,0.00028219,2]
[312168997,1705677043009,-500.0,0.00028219,2]
[312168998,1705677043020,-500.0,0.00028219,2]
[312168999,1705677043031,-10491.31,0.00028219,2]
[312169000,1705677043042,-500.0,0.00028219,2]
[312169001,1705677043053,-500.0,0.00028219,2]
[312169002,1705677043063,-500.0,0.00028219,2]
[312169003,1705677043073,-500.0,0.00028219,2]
[312169004,1705677043084,-1327.11,0.00028219,2]
[312169005,1705677043094,-500.0,0.00028219,2]
[312169006,1705677043104,-500.0,0.00028219,2]
[312169007,1705677043114,-3468.19,0.00028219,2]
[312169008,1705677043128,-500.0,0.00028219,2]
[312169009,1705677043138,-500.0,0.00028219,2]
[312169010,1705677043148,-500.0,0.00028219,2]
[312169011,1705677043158,-992.02,0.00028219,2]
[312169012,1705677043168,-1897.96,0.00028219,2]
[312169013,1705677043179,-4245.44,0.00028219,2]
[312169014,1705677043189,-500.0,0.00028219,2]
[312169015,1705677043200,-500.0,0.00028219,2]
[312169016,1705677043211,-1329.88,0.00028219,2]
[312169017,1705677043222,-500.0,0.00028219,2]
[312169018,1705677043232,-755.62,0.00028219,2]
[312169019,1705677043242,-500.0,0.00028219,2]
[312169020,1705677043252,-500.0,0.00028219,2]
[312169021,1705677043262,-719.52,0.00028219,2]
[312169022,1705677043272,-500.0,0.00028219,2]
[312169023,1705677043283,-513.7826788,0.00028219,2]
[312169024,1705677043293,-291.68044868,0.00028219,2]
[312169025,1705677043302,-500.0,0.00028219,2]
[312169026,1705677043312,-500.0,0.00028219,2]
[312169027,1705677043322,-500.0,0.00028219,2]
[312169028,1705677043331,-194.73467439,0.00028267,2]
[312169029,1705677043341,-50000.0,0.00028367,4]
[312169030,1705677043351,-50000.0,0.00028367,4]
[312169031,1705677043360,-77983.10228544,0.00028367,4]
[312169032,1705677043372,-5000.0,0.00028367,5]
[312169033,1705677043383,-17539.53885736,0.00028367,3]
[312169034,1705677043392,-6954.52593193,0.00028367,3]
[312169035,1705677043411,-37234.86885632,0.00028367,4]
[312169036,1705677043446,-350.0,0.00028367,2]
[312169037,1705677043456,-350.0,0.00028367,2]
[312169038,1705677043466,-280.0,0.00028461,15]
[312169039,1705677043475,-237.84642437,0.00028491,2]
[312169040,1705677043485,-10522.58661927,0.00028492,2]
[312169041,1705677043495,-151.0,0.00028493,2]
[312169042,1705677043504,-10000.0,0.00028493,2]
[312169043,1705677043514,-10000.0,0.00028493,2]
[312169044,1705677043523,-10000.0,0.00028493,2]
[312169045,1705677043532,-10000.0,0.00028493,2]
[312169046,1705677043542,-10000.0,0.00028493,2]
[312169048,1705677043551,-10000.0,0.00028493,2]
[312169049,1705677043560,-10000.0,0.00028493,2]
[312169051,1705677043570,-10000.0,0.00028493,2]
[312169052,1705677043580,-10000.0,0.00028493,2]
[312169053,1705677043589,-10000.0,0.00028493,2]
[312169054,1705677043599,-350.0,0.00028493,2]
[312169055,1705677043612,-350.0,0.00028493,2]
[312169056,1705677043625,-593.64010795,0.00028493,2]
[312169057,1705677043634,-500.0,0.00028493,2]
[312169058,1705677043644,-653.13,0.00028493,2]
[312169059,1705677043655,-816.01,0.00028493,2]
[312169060,1705677043666,-500.0,0.00028493,2]
[312169061,1705677043675,-500.0,0.00028493,2]
[312169062,1705677043685,-500.0,0.00028493,2]
[312169063,1705677043695,-506.1218786,0.00028493,2]
[312169064,1705677043705,-500.0,0.00028493,2]
[312169065,1705677043715,-500.0,0.00028493,2]
[312169066,1705677043725,-610.21,0.00028493,2]
[312169067,1705677043735,-500.0,0.00028493,2]
[312169068,1705677043745,-500.0,0.00028493,2]
[312169069,1705677043755,-500.0,0.00028493,2]
[312169070,1705677043764,-1402.57,0.00028493,2]
[312169071,1705677043774,-776.02,0.00028493,2]
[312169072,1705677043784,-500.0,0.00028493,2]
[312169073,1705677043794,-500.0,0.00028493,2]
[312169074,1705677043804,-734.07,0.00028493,2]
[312169075,1705677043814,-2118.33,0.00028493,2]
[312169076,1705677043823,-500.0,0.00028493,2]
[312169077,1705677043832,-500.0,0.00028493,2]
[312169078,1705677043842,-500.0,0.00028493,2]
[312169079,1705677043852,-500.0,0.00028493,2]
[312169080,1705677043862,-500.0,0.00028493,2]
[312169081,1705677043872,-500.0,0.00028493,2]
[312169082,1705677043882,-500.0,0.00028493,2]
[312169083,1705677043892,-500.0,0.00028493,2]
[312169084,1705677043901,-500.0,0.00028493,2]
[312169085,1705677043910,-500.0,0.00028493,2]
[312169086,1705677043919,-500.0,0.00028493,2]
[312169087,1705677043928,-500.0,0.00028493,2]
[312169088,1705677043938,-500.0,0.00028493,2]
[312169089,1705677043947,-500.0,0.00028493,2]
[312169090,1705677043957,-502.82978721,0.00028493,2]
[312169091,1705677043966,-500.0,0.00028493,2]
[312169092,1705677043975,-500.0,0.00028493,2]
[312169093,1705677043984,-500.0,0.00028493,2]
[312169094,1705677043993,-500.0,0.00028493,2]
[312169095,1705677044003,-1004.66,0.00028493,2]
[312169096,1705677044012,-500.0,0.00028493,2]
[312169097,1705677044022,-500.0,0.00028493,2]
[312169098,1705677044032,-521.78,0.00028493,2]
[312169099,1705677044042,-500.0,0.00028493,2]
[312169100,1705677044051,-1020.51,0.00028493,2]
[312169101,1705677044061,-5906.25,0.00028493,2]
[312169102,1705677044071,-943.93,0.00028493,2]
[312169103,1705677044081,-1458.95,0.00028493,2]
[312169104,1705677044090,-846.13,0.00028493,2]
[312169105,1705677044100,-500.0,0.00028493,2]
[312169106,1705677044110,-500.0,0.00028493,2]
[312169107,1705677044121,-1867.46,0.00028493,2]
[312169108,1705677044131,-500.0,0.00028493,2]
[312169109,1705677044141,-3658.92,0.00028493,2]
[312169110,1705677044150,-4354.7,0.00028493,2]
[312169111,1705677044160,-500.0,0.00028493,2]
[312169112,1705677044169,-734.22,0.00028493,2]
[312169113,1705677044179,-851.02,0.00028493,2]
[312169114,1705677044189,-18151.31,0.00028493,2]
[312169115,1705677044199,-500.0,0.00028493,2]
[312169116,1705677044208,-500.0,0.00028493,2]
[312169117,1705677044218,-10491.31,0.00028493,2]
[312169118,1705677044227,-500.0,0.00028493,2]
[312169119,1705677044237,-500.0,0.00028493,2]
[312169120,1705677044247,-1327.11,0.00028493,2]
[312169121,1705677044257,-500.0,0.00028493,2]
[312169122,1705677044268,-365.25469659,0.00028493,2]
[312169123,1705677044278,-3468.19,0.00028493,2]
[312169124,1705677044289,-500.0,0.00028493,2]
[312169125,1705677044299,-500.0,0.00028493,2]
[312169126,1705677044309,-500.0,0.00028493,2]
[312169127,1705677044319,-992.02,0.00028493,2]
[312169128,1705677044329,-1897.96,0.00028493,2]
[312169129,1705677044339,-4245.44,0.00028493,2]
[312169130,1705677044350,-500.0,0.00028493,2]
[312169131,1705677044360,-500.0,0.00028493,2]
[312169132,1705677044374,-1329.88,0.00028493,2]
[312169133,1705677044384,-500.0,0.00028493,2]
[312169134,1705677044395,-755.62,0.00028493,2]
[312169135,1705677044405,-500.0,0.00028493,2]
[312169136,1705677044415,-719.52,0.00028493,2]
[312169137,1705677044425,-586.29188756,0.00028493,2]
[312169138,1705677044435,-500.0,0.00028493,2]
[312169139,1705677044445,-500.0,0.00028493,2]
[312169140,1705677044455,-542.18057941,0.00028493,2]
[312169141,1705677044464,-434.3626415,0.00028493,2]
[312169142,1705677044474,-397.8658531,0.00028493,2]
[312169143,1705677044484,-306.0,0.00028493,2]
[312169144,1705677044494,-162.14834256,0.00028701,3]
[312169145,1705677044504,-261.99076107,0.00028721,2]
[312169146,1705677044581,-178.67391792,0.00028721,2]
[312169147,1705677044592,-7993.35951483,0.00028721,2]
[312169148,1705677044601,-323.12147464,0.00028721,2]
[312169149,1705677044613,-191.16884209,0.00028721,2]
[312169150,1705677044627,-327.18048,0.00028722,2]
[312169151,1705677044637,-11772.26462134,0.00028749,2]
[312169152,1705677044647,-763.6737386,0.00028767,2]
[312169153,1705677044656,-3215.46147441,0.00028767,2]
[312169154,1705677044666,-261.40839953,0.00028767,2]
[312169155,1705677044675,-547.67132072,0.00028767,2]
[312169156,1705677044685,-305.51246618,0.00028767,2]
[312169157,1705677044696,-154.82968734,0.00028767,2]
[312169158,1705677044708,-1273.29555953,0.00028767,2]
[312169159,1705677044718,-44992.97277691,0.00028767,7]
[312169160,1705677044728,-308.48179,0.00028767,2]
[312169161,1705677044737,-2170.1294719,0.00028767,2]
[312169162,1705677044746,-154.9690062,0.00028767,2]
[312169163,1705677044756,-225.08432184,0.00028767,2]
[312169164,1705677044765,-155.38504427,0.00028767,2]
[312169165,1705677044774,-653.13,0.00028767,2]
[312169166,1705677044783,-816.01,0.00028767,2]
[312169167,1705677044794,-500.0,0.00028767,2]
[312169168,1705677044803,-500.0,0.00028767,2]
[312169169,1705677044812,-500.0,0.00028767,2]
[312169170,1705677044822,-332.97668034,0.00028767,2]
[312169171,1705677044831,-293.55,0.00028767,2]
[312169172,1705677044840,-610.21,0.00028767,2]
[312169173,1705677044850,-500.0,0.00028767,2]
[312169174,1705677044859,-500.0,0.00028767,2]
[312169175,1705677044869,-1402.57,0.00028767,2]
[312169176,1705677044879,-776.02,0.00028767,2]
[312169177,1705677044889,-514.50148046,0.00028767,2]
[312169178,1705677044898,-734.07,0.00028767,2]
[312169179,1705677044907,-2118.33,0.00028767,2]
[312169180,1705677044917,-500.0,0.00028767,2]
[312169181,1705677044927,-500.0,0.00028767,2]
[312169182,1705677044937,-500.0,0.00028767,2]
[312169183,1705677044948,-500.0,0.00028767,2]
[312169184,1705677044958,-500.0,0.00028767,2]
[312169185,1705677044969,-500.0,0.00028767,2]
[312169186,1705677044979,-500.0,0.00028767,2]
[312169187,1705677044990,-500.0,0.00028767,2]
[312169188,1705677045000,-500.0,0.00028767,2]
[312169189,1705677045010,-500.0,0.00028767,2]
[312169190,1705677045021,-500.0,0.00028767,2]
[312169191,1705677045031,-500.0,0.00028767,2]
[312169192,1705677045042,-500.0,0.00028767,2]
[312169193,1705677045052,-500.0,0.00028767,2]
[312169194,1705677045063,-302.98557895,0.00028767,2]
[312169195,1705677045073,-500.0,0.00028767,2]
[312169196,1705677045083,-500.0,0.00028767,2]
[312169197,1705677045093,-500.0,0.00028767,2]
[312169198,1705677045103,-1004.66,0.00028767,2]
[312169199,1705677045113,-343.19737047,0.00028767,2]
[312169200,1705677045124,-500.0,0.00028767,2]
[312169201,1705677045135,-510.49124954,0.00028767,2]
[312169202,1705677045145,-521.78,0.00028767,2]
[312169203,1705677045156,-1020.51,0.00028767,2]
[312169204,1705677045166,-5906.25,0.00028767,2]
[312169205,1705677045176,-943.93,0.00028767,2]
[312169206,1705677045186,-1458.95,0.00028767,2]
[312169207,1705677045196,-846.13,0.00028767,2]
[312169208,1705677045206,-500.0,0.00028767,2]
[312169209,1705677045216,-264.40509235,0.00028767,2]
[312169210,1705677045225,-1867.46,0.00028767,2]
[312169211,1705677045236,-500.0,0.00028767,2]
[312169212,1705677045246,-3658.92,0.00028767,2]
[312169213,1705677045255,-4354.7,0.00028767,2]
[312169214,1705677045265,-734.22,0.00028767,2]
[312169215,1705677045275,-851.02,0.00028767,2]
[312169216,1705677045285,-18151.31,0.00028767,2]
[312169217,1705677045295,-500.0,0.00028767,2]
[312169218,1705677045305,-552.00331859,0.00028767,2]
[312169219,1705677045314,-10491.31,0.00028767,2]
[312169220,1705677045324,-500.0,0.00028767,2]
[312169221,1705677045334,-500.0,0.00028767,2]
[312169222,1705677045344,-1327.11,0.00028767,2]
[312169223,1705677045354,-500.0,0.00028767,2]
[312169224,1705677045364,-3468.19,0.00028767,2]
[312169225,1705677045376,-454.98786393,0.00028767,2]
[312169226,1705677045386,-500.0,0.00028767,2]
[312169227,1705677045397,-559.90950028,0.00028767,2]
[312169228,1705677045407,-992.02,0.00028767,2]
[312169229,1705677045417,-1897.96,0.00028767,2]
[312169230,1705677045427,-4245.44,0.00028767,2]
[312169231,1705677045437,-500.0,0.00028767,2]
[312169232,1705677045447,-1329.88,0.00028767,2]
[312169233,1705677045456,-500.0,0.00028767,2]
[312169234,1705677045466,-755.62,0.00028767,2]
[312169235,1705677045475,-445.73,0.00028767,2]
[312169236,1705677045485,-719.52,0.00028767,2]
[312169238,1705677045495,-500.0,0.00028767,2]
[312169239,1705677045505,-500.0,0.00028767,2]
[312169242,1705677045515,-151.0,0.00028767,2]
[312169244,1705677045524,-10000.0,0.00028767,2]
[312169247,1705677045533,-10000.0,0.00028767,2]
[312169250,1705677045542,-10000.0,0.00028767,2]
[312169252,1705677045553,-10000.0,0.00028767,2]
[312169255,1705677045563,-10000.0,0.00028767,2]
[312169257,1705677045573,-10000.0,0.00028767,2]
[312169259,1705677045583,-10000.0,0.00028767,2]
[312169261,1705677045595,-10000.0,0.00028767,2]
[312169262,1705677045605,-10000.0,0.00028767,2]
[312169263,1705677045619,-10000.0,0.00028767,2]
[312169264,1705677045628,-350.0,0.00028767,2]
[312169265,1705677045638,-350.0,0.00028767,2]
[312169266,1705677045648,-350.0,0.00028797,2]
[312169267,1705677045658,-350.0,0.00028797,2]
[312169268,1705677045667,-5176.21,0.00028797,2]
[312169269,1705677045677,-5176.21,0.00028797,2]
[312169271,1705677045687,-5176.21,0.00028797,2]
[312169273,1705677045698,-5176.21,0.00028797,2]
[312169274,1705677045710,-5176.21,0.00028797,2]
[312169277,1705677045719,-5176.21,0.00028797,2]
[312169280,1705677045729,-5176.21,0.00028797,2]
[312169283,1705677045739,-5176.21,0.00028797,2]
[312169286,1705677045748,-5176.21,0.00028797,2]
[312169290,1705677045757,-5176.21,0.00028797,2]
[312169293,1705677045767,-303.84522028,0.00028798,2]
[312169296,1705677045777,-154.9690062,0.00028798,2]
[312169298,1705677045788,-155.62749359,0.00028798,2]
[312169301,1705677045797,-677.90931289,0.00028798,2]
[312169302,1705677045807,-154.93802479,0.00028798,2]
[312169303,1705677045817,-154.96023507,0.00028798,2]
[312169305,1705677045827,-154.95351395,0.00028798,2]
[312169306,1705677045837,-2096.79152014,0.00028798,2]
[312169307,1705677045847,-849.41831623,0.00028798,2]
[312169308,1705677045856,-1196.71363385,0.00028798,2]
[312169309,1705677045866,-2995.12470388,0.00028799,2]
[312169310,1705677045878,-162.90283469,0.00028799,10]
[312169311,1705677045887,-372218.49944459,0.000288,2]
[312169312,1705677046033,-10202.84952288,0.000288,2]
[312169313,1705677046226,-787.34773645,0.00025873,2]
[312169314,1705677046236,-500.0,0.00027397,2]
[312169315,1705677046246,-500.0,0.00027397,2]
[312169316,1705677046257,-500.0,0.00027397,2]
[312169317,1705677046267,-500.0,0.00027397,2]
[312169318,1705677046277,-500.0,0.00027671,2]
[312169319,1705677046287,-500.0,0.00027671,2]
[312169320,1705677046297,-500.0,0.00027671,2]
[312169321,1705677046307,-635.59057969,0.00027671,2]
[312169322,1705677046318,-500.0,0.00027945,2]
[312169323,1705677046328,-500.0,0.00027945,2]
[312169324,1705677046338,-500.0,0.00028219,2]
[312169325,1705677046347,-500.0,0.00028219,2]
[312169326,1705677046357,-500.0,0.00028493,2]
[312169327,1705677046367,-500.0,0.00028493,2]
[312169328,1705677046379,-269.34,0.00028767,2]
[312169330,1705677046389,-500.0,0.00028767,2]
[312169332,1705677046398,-30560.47942731,0.000288,2]
[312169334,1705677046411,-5516.99419489,0.000288,2]
[312169336,1705677046423,-158226.79547861,0.000288,2]
[312169337,1705677046513,-500.0,0.00027397,2]
[312169338,1705677046523,-500.0,0.00027671,2]
[312169340,1705677046532,-500.0,0.00027945,2]
[312169342,1705677046542,-378.55074998,0.00028219,2]
[312169344,1705677046554,-121.44925002,0.00028219,2]
[312169346,1705677046564,-500.0,0.00028493,2]
[312169348,1705677046573,-4246.17528886,0.000288,2]
[312169350,1705677046590,-500.0,0.00028767,2]
[312169351,1705677046600,-12955.40595399,0.000288,2]
[312169352,1705677046613,-19170.19349487,0.000288,2]
[312169372,1705678006099,-310.38259569,0.00021997,2]
[312169373,1705678046084,-476.96514076,0.00021997,2]
[312169374,1705678046107,-760.31790163,0.00021998,5]
[312169375,1705678046129,-293.50088146,0.00022,4]
[312169376,1705678046153,-1323.60471897,0.0002503,2]
[312169383,1705678147095,-154.84515485,0.00019797,2]
[312169384,1705678147117,-618.32745977,0.00023916,5]
[312169385,1705678147147,-143.30409821,0.00023916,5]
[312169388,1705678216267,13.27635985,0.00023916,2]
[312169389,1705678216293,534.39496087,0.00023916,2]
[312169411,1705678233483,227.38268848,0.00023916,2]
[312169566,1705678239334,-3988.17117999,0.00025019,2]
[312169568,1705678239347,-2009.57254913,0.00025019,2]
[312169570,1705678239359,-2002.21823931,0.00025019,2]
[312169572,1705678239369,-4511.89389724,0.0002502,3]
[312169574,1705678239380,-3249.85613105,0.0002502,3]
[312169577,1705678239393,-7957.68997171,0.0002502,3]
[312169579,1705678239402,-763.6737386,0.0002503,2]
[312169581,1705678239412,-1554.47307607,0.0002503,7]
[312169583,1705678239424,-534.9185893,0.0002503,7]
[312169588,1705678239466,-43993.66247293,0.0002503,7]
[312169590,1705678239477,-23576.39528103,0.0002503,2]
[312169592,1705678239487,-230.414207,0.00025031,2]
[312169594,1705678239497,-1617.10241426,0.00026042,2]
[312169597,1705678239507,-200.0,0.00026281,15]
[312169598,1705678239517,-179.48737399,0.000263,3]
[312169601,1705678239527,-620.01728419,0.000264,2]
[312169603,1705678239537,-261.99076107,0.00026573,2]
[312169604,1705678239546,-191.16884209,0.00026573,2]
[312169607,1705678239558,-327.18048,0.00026573,2]
[312169609,1705678239568,-323.12147464,0.00026573,2]
[312169611,1705678239578,-178.67391792,0.00026573,2]
[312169613,1705678239588,-237.84642437,0.00026574,2]
[312169615,1705678239598,-10522.58661927,0.00026574,2]
[312169618,1705678239607,-50000.0,0.00026575,2]
[312169620,1705678239617,-50000.0,0.00026624,2]
[312169622,1705678239626,-1823.80072626,0.000267,2]
[312169623,1705678239636,-1500.0,0.00027,2]
[312169626,1705678239647,-320.47043133,0.00027066,5]
[312169628,1705678239657,-181.05722334,0.00027295,2]
[312169630,1705678239666,-521.84055297,0.00027395,2]
[312169632,1705678239676,-260.99609825,0.00027395,2]
[312169634,1705678239687,-875.93915164,0.00027395,2]
[312169636,1705678239696,-13636.91051469,0.00027395,2]
[312169638,1705678239706,-175.13584081,0.00027395,2]
[312169640,1705678239715,-264.03826997,0.00027395,2]
[312169641,1705678239725,-230.71907883,0.00027395,2]
[312169644,1705678239735,-286.22633212,0.00027396,2]
[312169646,1705678239745,-3128.22508425,0.00027396,2]
[312169648,1705678239755,-500.0,0.00027397,2]
[312169650,1705678239766,-500.0,0.00027397,2]
[312169652,1705678239776,-500.0,0.00027397,2]
[312169654,1705678239786,-500.0,0.00027397,2]
[312169656,1705678239796,-500.0,0.00027397,2]
[312169658,1705678239809,-355.82780142,0.00027397,2]
[312169660,1705678239819,-500.0,0.00027397,2]
[312169662,1705678239828,-506.78784956,0.00027397,2]
[312169664,1705678239839,-500.0,0.00027397,2]
[312169666,1705678239848,-500.0,0.00027397,2]
[312169668,1705678239858,-500.0,0.00027397,2]
[312169670,1705678239868,-500.0,0.00027397,2]
[312169672,1705678239878,-507.80576865,0.00027397,2]
[312169674,1705678239887,-500.0,0.00027397,2]
[312169676,1705678239897,-479.11039133,0.00027397,2]
[312169678,1705678239906,-500.0,0.00027397,2]
[312169679,1705678239915,-500.0,0.00027397,2]
[312169681,1705678239925,-526.05575528,0.00027397,2]
[312169683,1705678239934,-601.69002037,0.00027397,2]
[312169685,1705678239944,-500.0,0.00027397,2]
[312169687,1705678239954,-500.0,0.00027397,2]
[312169689,1705678239963,-500.0,0.00027397,2]
[312169691,1705678239972,-500.0,0.00027397,2]
[312169693,1705678239982,-500.0,0.00027397,2]
[312169695,1705678239991,-500.49039529,0.00027397,2]
[312169697,1705678240000,-465.35602054,0.00027397,2]
[312169698,1705678240010,-500.0,0.00027397,2]
[312169700,1705678240020,-506.50835302,0.00027397,2]
[312169703,1705678240030,-500.0,0.00027397,2]
[312169704,1705678240041,-407.97663313,0.00027397,2]
[312169706,1705678240050,-500.0,0.00027397,2]
[312169708,1705678240060,-500.0,0.00027397,2]
[312169710,1705678240069,-500.0,0.00027397,2]
[312169712,1705678240079,-1000.0,0.00027397,2]
[312169714,1705678240088,-500.0,0.00027397,2]
[312169716,1705678240097,-287.43882541,0.00027397,2]
[312169718,1705678240106,-500.0,0.00027397,2]
[312169720,1705678240116,-500.0,0.00027397,2]
[312169722,1705678240127,-500.0,0.00027397,2]
[312169724,1705678240136,-500.0,0.00027397,2]
[312169726,1705678240145,-503.80379384,0.00027397,2]
[312169728,1705678240154,-513.59030974,0.00027397,2]
[312169730,1705678240163,-512.34032242,0.00027397,2]
[312169732,1705678240172,-500.0,0.00027397,2]
[312169734,1705678240181,-502.0314944,0.00027397,2]
[312169736,1705678240191,-502.97710303,0.00027397,2]
[312169738,1705678240200,-500.0,0.00027397,2]
[312169740,1705678240209,-500.0,0.00027397,2]
[312169742,1705678240220,-500.0,0.00027397,2]
[312169745,1705678240229,-500.0,0.00027397,14]
[312169747,1705678240238,-500.0,0.00027397,2]
[312169749,1705678240247,-500.0,0.00027397,2]
[312169751,1705678240256,-500.0,0.00027397,2]
[312169753,1705678240265,-500.0,0.00027397,2]
[312169755,1705678240275,-500.0,0.00027397,2]
[312169757,1705678240285,-500.0,0.00027397,2]
[312169759,1705678240294,-500.0,0.00027397,2]
[312169761,1705678240305,-500.0,0.00027397,2]
[312169763,1705678240315,-500.0,0.00027397,2]
[312169764,1705678240324,-500.0,0.00027397,2]
[312169766,1705678240334,-633.835,0.00027397,2]
[312169768,1705678240343,-500.0,0.00027397,2]
[312169770,1705678240353,-500.0,0.00027397,2]
[312169772,1705678240362,-500.0,0.00027397,2]
[312169775,1705678240372,-187.46119069,0.00027397,2]
[312169777,1705678240381,-642.04263238,0.00027397,2]
[312169779,1705678240391,-310.58802981,0.00027397,2]
[312169781,1705678240400,-504.88440796,0.00027397,2]
[312169783,1705678240410,-500.0,0.00027397,2]
[312169785,1705678240419,-500.70177559,0.00027397,2]
[312169787,1705678240429,-500.0,0.00027397,2]
[312169789,1705678240438,-500.0,0.00027397,2]
[312169790,1705678240447,-500.0,0.00027397,2]
[312169792,1705678240457,-500.0,0.00027397,2]
[312169794,1705678240466,-500.0,0.00027397,2]
[312169796,1705678240475,-505.39441684,0.00027397,2]
[312169798,1705678240484,-500.0,0.00027397,2]
[312169800,1705678240493,-500.0,0.00027397,2]
[312169802,1705678240502,-500.88805801,0.00027397,2]
[312169804,1705678240511,-500.0,0.00027397,2]
[312169806,1705678240521,-500.0,0.00027397,2]
[312169808,1705678240530,-501.88135404,0.00027397,2]
[312169810,1705678240539,-500.0,0.00027397,2]
[312169812,1705678240549,-500.77772675,0.00027397,2]
[312169813,1705678240560,-508.30920079,0.00027397,2]
[312169815,1705678240570,-500.0,0.00027397,2]
[312169817,1705678240580,-500.0,0.00027397,2]
[312169820,1705678240590,-500.0,0.00027397,2]
[312169821,1705678240599,-500.0,0.00027397,2]
[312169823,1705678240608,-500.0,0.00027397,2]
[312169825,1705678240618,-500.0,0.00027397,2]
[312169827,1705678240627,-508.51,0.00027397,2]
[312169829,1705678240637,-500.0,0.00027397,2]
[312169831,1705678240646,-500.0,0.00027397,2]
[312169833,1705678240655,-500.0,0.00027397,2]
[312169835,1705678240664,-500.0,0.00027397,2]
[312169837,1705678240674,-500.0,0.00027397,2]
[312169839,1705678240684,-500.0,0.00027397,2]
[312169841,1705678240693,-415.12126942,0.00027397,2]
[312169843,1705678240702,-500.0,0.00027397,2]
[312169845,1705678240712,-674.1,0.00027397,2]
[312169847,1705678240721,-658.12,0.00027397,2]
[312169849,1705678240730,-500.0,0.00027397,2]
[312169851,1705678240740,-500.0,0.00027397,2]
[312169853,1705678240749,-174.6243154,0.00027397,2]
[312169855,1705678240758,-500.0,0.00027397,2]
[312169857,1705678240767,-194.81288984,0.00027397,2]
[312169859,1705678240776,-500.0,0.00027397,2]
[312169861,1705678240786,-500.0,0.00027397,2]
[312169863,1705678240794,-500.0,0.00027397,2]
[312169865,1705678240805,-500.0,0.00027397,2]
[312169867,1705678240815,-500.0,0.00027397,2]
[312169869,1705678240824,-500.0,0.00027397,2]
[312169871,1705678240834,-500.0,0.00027397,2]
[312169873,1705678240843,-500.0,0.00027397,2]
[312169882,1705678240928,-500.0,0.00027397,2]
[312169884,1705678240938,-500.0,0.00027397,2]
[312169886,1705678240948,-500.0,0.00027397,2]
[312169887,1705678240957,-500.0,0.00027397,2]
[312169889,1705678240967,-500.0,0.00027397,2]
[312169891,1705678240977,-500.0,0.00027397,2]
[312169893,1705678240986,-500.0,0.00027397,2]
[312169895,1705678240997,-500.0,0.00027397,2]
[312169897,1705678241006,-503.74921637,0.00027397,2]
[312169899,1705678241019,-500.0,0.00027397,2]
[312169901,1705678241031,-500.0,0.00027397,2]
[312169903,1705678241041,-1387.89,0.00027397,2]
[312169905,1705678241052,-500.0,0.00027397,2]
[312169907,1705678241063,-500.0,0.00027397,2]
[312169909,1705678241072,-500.0,0.00027397,2]
[312169911,1705678241082,-1916.95,0.00027397,2]
[312169913,1705678241092,-500.0,0.00027397,2]
[312169915,1705678241103,-500.0,0.00027397,2]
[312169917,1705678241114,-500.0,0.00027397,2]